Cogmind - Beta 12 X1 @@@ ROGUE MODE // 2022.10.12 @ 03:59:59 Player: leiavoia Result: Escaped! Performance ------------- Evolutions (9) 4500 Regions Visited (29) 5800 Robots Destroyed (500) 2500 Value Destroyed (20373) 20373 Prototype IDs (50) 1000 Alien Tech Used (2) 400 Bonus (11842) 11842 TOTAL SCORE: 46415 Bonus ------- Triggered High Security 500 High Alert Combat Kills 5617 Follower Combat Kills 2332 Entered DSFs 500 Met Data Miner 300 Met Imprinter 300 Met Zhirov 300 Built Enhanced Grunts 300 Scanned by Researcher 500 Win 3000 Friendly Fire -1807 Cogmind --------- Core Integrity 262/1600 Matter 300/300 Energy 99/100 System Corruption 26% Temperature Cool (0) Movement Core (50) Location To Epsilon Eridani Parts ------- > --- POWER (2) -------- (None) > --- PROPULSION (6) --- (None) > --- UTILITY (12) ----- Graphene Brace > --- WEAPON (5) ------- (None) > --- INVENTORY (5) ---- Terrabomb Matter Neutralizer Molecular Deconstructor Peak State ------------ > --- POWER ------------ Graviton Reactor Reinforced Quantum Reactor > --- PROPULSION ------- Advanced Heavy Siege Treads Advanced Heavy Siege Treads Advanced Heavy Siege Treads > --- UTILITY ---------- Advanced Cooling System Advanced Cooling System Huge Storage Unit Machine Analyzer Advanced Signal Interpreter Advanced Terrain Scanner Precision Matter Filter Improved Kinecellerator Improved Weapon Cycler Graphene Brace Advanced Thermal Shield Experimental Force Field > --- WEAPON ----------- Heavy Linear Accelerator Fusion Bomb Launcher Fusion Bomb Launcher Fusion Bomb Launcher > --- INVENTORY -------- Graviton Reactor Graviton Reactor Advanced Heavy Siege Treads Advanced Heavy Siege Treads Advanced Heavy Siege Treads Advanced Sensor Array Precision Matter Filter Layered Heavy Armor Plating Improved Focal Shield Long-range Tractor Beam Transdimensional Reconstructor Terrabomb HERF Cannon Neutron Cannon Nova Cannon Enhanced Gauss Cannon Heavy Gauss Cannon Fusion Bomb Launcher Molecular Deconstructor CR-A16's Pointy Stick [Rating: 200] Favorites ----------- Power Improved Ion Engine Engine Improved Ion Engine Power Core Neutrino Core Reactor Antimatter Reactor Propulsion Armored Huge Wheel Treads Medium Treads Leg Armored Leg Wheel Armored Huge Wheel Flight Unit Nuclear Pulse Array Utility Huge Storage Unit Device Advanced Heat Sink Storage Huge Storage Unit Processor Advanced Targeting Computer Hackware Hacking Suite Protection Improved Medium Armor Plating Weapon Mini Assault Cannon Energy Gun EM Shotgun Energy Cannon Compact Ion Cannon Ballistic Gun Advanced KE Penetrator Ballistic Cannon Mini Assault Cannon Launcher Fusion Bomb Launcher Special Weapon Molecular Deconstructor Impact Weapon Great Maul Piercing Weapon CR-A16's Pointy Stick Build | -11 -10 -10 -9 -9 -8 -7 -7 -7 -7 -6 -6 -6 -6 -6 -5 -5 -5 -5 -5 -4 -4 -4 -4 -3 -3 -3 -2 -2 -1 ------- Run | Scr Mat Min Mat Sto Mat Fac Low Low Dat Pro Fac Low Low Zio Pro Fac Ext Cet Arc Fac Upp Upp Zhi Pro Res Qua Res DSF Acc Slots Evolved 18 | . . . 2 . 2 2 . . . . 2 . . . . 2 . . . 2 . . . . 2 . 2 . 2 Power 1 | . . . . . . . . . . . . . . . . . . . . 1 . . . . . . . . . Propulsion 4 | . . . 1 . 1 . . . . . 1 . . . . 1 . . . . . . . . . . . . . Utility 10 | . . . 1 . 1 1 . . . . 1 . . . . 1 . . . . . . . . 2 . 1 . 2 Weapon 3 | . . . . . . 1 . . . . . . . . . . . . . 1 . . . . . . 1 . . Parts Attached 522 | 1 6 6 33 24 38 31 7 7 3 29 23 7 5 5 4 53 31 6 10 15 11 11 9 11 37 31 . 25 43 Power 27 | . 1 . 4 1 2 2 1 . . 1 2 . . . . 2 2 . 2 1 . . 1 . 2 . . 1 2 Engine 14 | . 1 . 4 1 2 1 1 . . . . . . . . 1 2 . . 1 . . . . . . . . . Core 4 | . . . . . . 1 . . . . 1 . . . . 1 . . 1 . . . . . . . . . . Reactor 9 | . . . . . . . . . . 1 1 . . . . . . . 1 . . . 1 . 2 . . 1 2 Propulsion 94 | . 3 2 10 3 9 3 . 1 . 6 4 1 . 1 2 11 14 1 4 3 . . . 1 1 1 . 6 7 Treads 62 | . 1 . 8 2 9 1 . . . 5 2 . . . 1 5 4 1 4 3 . . . 1 1 1 . 6 7 Leg 16 | . . . 1 . . . . . . 1 1 . . . . 3 10 . . . . . . . . . . . . Wheel 15 | . 2 2 1 1 . 2 . 1 . . 1 1 . 1 1 2 . . . . . . . . . . . . . Hover . | . . . . . . . . . . . . . . . . . . . . . . . . . . . . . . Flight 1 | . . . . . . . . . . . . . . . . 1 . . . . . . . . . . . . . Utility 215 | 1 1 1 6 3 14 15 2 1 . 12 10 . 3 2 . 23 10 3 2 9 8 8 3 6 23 20 . 12 17 Device 145 | 1 . . 1 2 7 5 . . . 7 6 . 1 2 . 12 5 2 1 6 7 8 2 5 20 19 . 11 15 Storage 8 | . 1 . . . . 1 1 . . 2 . . . . . . 1 . . 1 . . . . . . . 1 . Processor 5 | . . . . . 1 . . . . . . . . . . 2 . . . . . . . 1 1 . . . . Hackware 10 | . . . . . 1 3 . . . . 1 . 1 . . 3 1 . . . . . . . . . . . . Protection 47 | . . 1 5 1 5 6 1 1 . 3 3 . 1 . . 6 3 1 1 2 1 . 1 . 2 1 . . 2 Artifact . | . . . . . . . . . . . . . . . . . . . . . . . . . . . . . . Weapon 186 | . 1 3 13 17 13 11 4 5 3 10 7 6 2 2 2 17 5 2 2 2 3 3 5 4 11 10 . 6 17 Energy Gun 9 | . . 1 7 . . 1 . . . . . . . . . . . . . . . . . . . . . . . Energy Cannon 24 | . . . . 3 . 1 . . . 1 1 3 . 1 . 1 . . . . 3 . . 1 2 2 . 1 4 Ballistic Gun 39 | . 1 2 5 2 . . . . . 3 . . . . . 8 1 . 2 . . . . 2 6 5 . 2 . Ballistic Cannon 59 | . . . . 9 7 6 2 3 3 2 4 1 1 . . 4 2 1 . 1 . 1 3 . 1 1 . 2 5 Launcher 50 | . . . 1 3 6 3 2 2 . 4 2 2 1 1 2 4 2 . . . . 2 1 1 1 1 . 1 8 Special Weapon 2 | . . . . . . . . . . . . . . . . . . . . . . . . . 1 1 . . . Impact Weapon 2 | . . . . . . . . . . . . . . . . . . 1 . 1 . . . . . . . . . Slashing Weapon . | . . . . . . . . . . . . . . . . . . . . . . . . . . . . . . Piercing Weapon 1 | . . . . . . . . . . . . . . . . . . . . . . . 1 . . . . . . Special Melee Weapon . | . . . . . . . . . . . . . . . . . . . . . . . . . . . . . . Unidentified Prototypes 24 | . . . 2 3 . 2 . . . 3 . . . . . 1 . 1 1 . 1 . 3 . 3 1 . . 3 Corrupted Parts 16 | . . . . 6 . . . . . 5 . . . . 1 . . 1 3 . . . . . . . . . . System Corruption 98 | . . . . 50 . . . . . 15 . . . . 10 . . 8 15 . . . . . . . . . . Parts Lost 99 | . 1 2 2 2 8 2 1 1 . 12 . . . . . 25 3 1 1 . . 1 . . 2 1 . 3 31 Power 12 | . 1 . 1 . 2 1 1 . . 1 . . . . . 3 . . . . . 1 . . . . . . 1 Propulsion 23 | . . . . . 2 . . 1 . 3 . . . . . 8 . . 1 . . . . . . . . . 8 Utility 40 | . . 1 . 2 3 1 . . . 5 . . . . . 7 3 . . . . . . . 2 1 . 1 14 Weapon 24 | . . 1 1 . 1 . . . . 3 . . . . . 7 . 1 . . . . . . . . . 2 8 Highest Loss Streak 21 | . 1 2 1 1 8 1 1 1 . 5 . . . . . 21 2 1 1 . . 1 . . 1 1 . 2 14 To Critical Strikes 1 | . . . . . . . . . . . . . . . . 1 . . . . . . . . . . . . . Average Slot Usage (%) 88 | . 100 99 97 99 93 87 77 75 55 81 92 93 93 93 93 88 83 93 88 89 88 88 67 88 88 85 . 82 72 Engine 3 | . 14 14 10 11 7 5 7 7 7 3 . . . . . . 4 5 1 5 5 4 . . . . . . . Core 1 | . . . . . . 1 . . . . . . . . . 2 . . 3 5 5 5 5 5 1 . . . . Reactor 2 | . . . . . . . . . . . 5 6 6 6 6 1 . . . . . . 2 5 6 9 . 8 7 Treads 15 | . . . 20 33 34 10 . . . 11 10 6 6 6 5 12 13 28 29 26 26 26 26 25 18 14 . 13 11 Leg 2 | . 10 . 2 . . . . . . . 3 6 6 6 6 2 14 . . . . . . . . . . . . Wheel 6 | . 17 28 10 . . 9 15 14 15 8 12 13 13 13 13 11 . . . . . . . . . . . . . Device 12 | . 14 2 9 15 9 4 7 7 7 11 16 13 12 6 13 12 14 11 11 9 9 11 15 15 19 25 . 27 27 Storage 6 | . 14 14 11 11 9 7 7 7 7 7 8 6 6 6 6 4 4 5 5 5 5 5 5 5 4 4 . 4 3 Processor 5 | . . . . . 3 7 7 7 7 7 6 6 6 6 6 8 5 5 5 5 5 5 5 5 9 9 . 8 6 Hackware 1 | . . . . . 2 9 1 . . . 5 . . 5 . 7 4 . . . . . . . . . . . . Protection 7 | . . 11 10 5 7 6 7 7 7 5 2 13 13 13 13 2 5 17 11 10 10 8 5 5 7 1 . 1 1 Energy Cannon 1 | . . . . . . . . . . 1 1 4 6 6 1 . . . . . 1 . . 3 2 1 . . 4 Ballistic Gun 4 | . 14 25 13 10 . . . . . 3 . . . . . 11 2 . 6 10 8 4 . 4 5 17 . 7 . Ballistic Cannon 11 | . . . . 10 17 21 22 22 2 16 17 14 12 13 8 1 7 13 9 9 10 14 . 11 8 . . 10 7 Naked Turns 6 | . . . . . . . . . . . . . . . . 6 . . . . . . . . . . . . . Heaviest Build 232 | 14 50 52 61 64 72 115 230 232 232 117 130 131 128 124 128 131 134 135 145 168 169 169 161 167 176 172 172 213 227 Greatest Support 240 | 20 32 32 66 66 84 82 56 56 56 56 38 38 38 38 50 50 157 167 186 186 186 186 186 205 205 210 210 240 240 Greatest Overweight (x) 5 | . 1 1 3 1 1 2 4 4 4 4 4 3 3 3 3 5 3 . . 1 . . . . . . . . . Average Overweight (x) 1 | . . 1 1 . . . 3 4 3 2 3 3 3 3 2 1 . . . . . . . . . . . . . Largest Inventory Capacity 35 | 8 20 20 20 20 20 25 35 35 35 35 25 25 25 25 25 25 25 25 25 25 25 25 25 25 25 25 25 30 25 Average Capacity 24 | 8 15 20 20 20 20 23 32 35 35 24 25 25 25 25 25 23 22 25 25 25 25 25 25 25 25 25 25 25 23 Most Carried 35 | 7 17 20 20 20 20 25 32 35 35 35 25 25 25 25 25 25 25 24 25 25 25 25 25 25 25 25 25 25 25 Average Carried 23 | 6 11 19 19 19 19 22 28 33 35 21 24 24 24 24 24 22 17 23 24 24 24 24 24 24 23 23 25 24 20 Final Capacity 35 | 8 20 20 20 20 20 25 35 35 35 25 25 25 25 25 25 5 25 25 25 25 25 25 25 25 25 25 25 25 5 Final Carried 35 | 7 17 20 20 20 20 24 32 35 35 25 25 25 25 24 25 5 22 24 25 25 25 25 25 25 25 25 25 25 4 Class Distribution -------------------- 29% | Mutant 21% | Scavenger-Mutant 12% | Scavenger-Tank 6% | Tank 6% | Scavenger-Skirmisher 4% | Hauler-Gunner Dominant Class ---------------- Mutant | -10/Materials Mutant | -10/Mines Mutant | -9/Materials Mutant | -9/Storage Mutant | -8/Materials Hacker-Gunner | -7/Factory Hauler-Gunner | -7/Lower Caves Hauler-Gunner | -7/Lower Caves Hauler-Mutant | -7/Data Miner Mutant | -6/Proximity Caves Derelict-Gunner | -6/Factory Mutant | -6/Lower Caves Mutant | -6/Lower Caves Mutant | -6/Zion Derelict-Mutant | -5/Proximity Caves Hacker-Skirmisher | -5/Factory Scavenger-Mutant | -5/Extension Scavenger-Mutant | -5/Cetus Scavenger-Tank | -5/Archives Scavenger-Tank | -4/Factory Scavenger-Mutant | -4/Upper Caves Scavenger-Mutant | -4/Upper Caves Scavenger-Mutant | -4/Zhirov Scavenger-Mutant | -3/Proximity Caves Scavenger-Mutant | -3/Research Scavenger-Skirmisher | -3/Quarantine Scavenger-Skirmisher | -2/Research Scavenger-Tank | -2/DSF Scavenger-Tank | -1/Access Resources | -11 -10 -10 -9 -9 -8 -7 -7 -7 -7 -6 -6 -6 -6 -6 -5 -5 -5 -5 -5 -4 -4 -4 -4 -3 -3 -3 -2 -2 -1 ----------- Run | Scr Mat Min Mat Sto Mat Fac Low Low Dat Pro Fac Low Low Zio Pro Fac Ext Cet Arc Fac Upp Upp Zhi Pro Res Qua Res DSF Acc Matter Collected 17031 | 227 124 292 738 807 1764 1082 633 295 . 971 342 410 116 30 209 1278 934 530 143 563 342 472 149 197 623 1154 . 538 2068 Remotely 4139 | . . . . . 258 327 . . . . 244 . . . . 334 . . . 128 . 51 149 31 459 1016 . 350 792 Salvage Created 18914 | 163 272 280 1450 1402 1319 734 151 101 . 575 371 710 751 . 451 1810 360 248 . 319 144 302 345 89 660 2030 . 756 3121 Parts 945 | 12 21 27 76 85 88 39 12 8 . 19 22 39 24 . 14 112 30 15 . 21 4 19 1 10 23 96 . 23 105 Haulers Intercepted 18 | . . . 5 3 5 1 . . . . . . . . . 1 . . . . . . . . 1 . . . 2 Recyclers Shooed 10 | 1 . . 1 1 . 1 . . . . 1 . . . . 2 . . . . . . . . . . . . 3 Parts Field Recycled . | . . . . . . . . . . . . . . . . . . . . . . . . . . . . . . Retrieved Matter . | . . . . . . . . . . . . . . . . . . . . . . . . . . . . . . Parts Self-Destructed 84 | . . . . . . . 9 7 . 13 . 12 8 1 2 . . . . . 1 24 1 6 . . . . . Prevented 50 | . . . . . . . 2 . . 1 . 13 15 . 12 . . . . . . 7 . . . . . . . Kills | -11 -10 -10 -9 -9 -8 -7 -7 -7 -7 -6 -6 -6 -6 -6 -5 -5 -5 -5 -5 -4 -4 -4 -4 -3 -3 -3 -2 -2 -1 ------- Run | Scr Mat Min Mat Sto Mat Fac Low Low Dat Pro Fac Low Low Zio Pro Fac Ext Cet Arc Fac Upp Upp Zhi Pro Res Qua Res DSF Acc Combat Hostiles Destroyed 371 | . 12 2 20 30 37 21 7 7 . 18 8 11 9 . 8 27 10 5 . 8 2 14 . 5 11 25 . 9 65 Guns 90 | . 10 2 16 13 . . . . . . . . . . . 16 1 . . 4 2 2 . . 2 18 . 4 . Cannons 132 | . . . . 10 23 15 2 2 . 6 4 3 2 . 2 3 4 5 . 4 . 5 . . 6 1 . 5 30 AOE 143 | . 2 . 4 7 14 6 5 5 . 12 4 8 4 . 4 7 5 . . . . 7 . 5 3 6 . . 35 Classes Destroyed 26 | 2 3 2 3 1 3 1 . . . 1 . 1 . . . 2 . . . . 1 . . . . . . 1 5 Worker 23 | . . 2 3 1 3 1 . . . . . . . . . 8 . . . 1 . . . . . 2 . . 2 Builder 29 | . . 1 2 2 5 2 . . . . 1 . . . . 6 2 . . . . . . . . 1 . . 7 Tunneler 9 | 4 . 3 . . 1 . . . . . . . . . . . . . . . . . . . . . . . 1 Hauler 18 | . . . 5 3 5 1 . . . . . . . . . 1 . . . . . . . . 1 . . . 2 Recycler 22 | 1 . . 3 3 3 2 . . . . 1 . . . . 2 . . . . . . . . . 3 . . 4 Carrier 1 | . . . . . . . . . . . . . . . . . . . . . . . . . . . . . 1 Minesweeper 2 | . . . . . . . . . . 1 . 1 . . . . . . . . . . . . . . . . . Mechanic 2 | . . . . . . . . . . . . . . . . . . . . . . . . . . . . . 2 Operator 5 | . . . . 1 1 . . . . . . . . . . . 1 . . . . . . . . 1 . . 1 Watcher 18 | . 1 . 2 . 4 . . . . . . . . . . 4 . 1 . . . . . . 3 1 . . 2 Swarmer 93 | . 9 . 3 5 6 8 7 4 . 2 4 4 2 . . 10 3 . . 1 . 10 . 5 . . . . 10 Saboteur 2 | . . . . . . . . . . . . . . . . 1 . . . . . . . . . . . . 1 Grunt 137 | . 3 2 11 13 23 8 . 1 . 8 3 3 6 . 4 6 5 3 . . . 3 . . . 9 . . 26 Brawler 11 | . . . 1 . 1 . . . . 4 . 1 . . 1 . . . . . . . . . . . . . 3 Duelist 10 | . . . . . 1 . . . . 2 . 1 1 . . . . . . . . . . . . . . . 5 Protector 3 | . . . . . 2 . . . . . . . . . . . . . . . . . . . . . . . 1 Sentry 33 | . . . 5 12 4 2 . 1 . 1 . 2 1 . . . . . . 1 . 1 . . 1 1 . . 1 Specialist 4 | . . . . . . . . . . . . . . . . 1 . . . . . . . . . . . 3 . Hunter 35 | . . . . . 1 1 . . . . . . . . 3 6 2 . . . . . . . 2 8 . 5 7 Programmer 36 | . . . . . . 2 . 1 . 1 1 . . . . 3 . . . 6 . . . . 8 7 . . 7 Heavy 1 | . . . . . . . . . . . . . . . . . . . . . . . . . . . . 1 . Q-Series 1 | . . . . . . . . . . . . . . . . . . . . . . . . . . . . . 1 Cetus Guard 2 | . . . . . . . . . . . . . . . . . . 2 . . . . . . . . . . . Enhanced Grunt 1 | . . . . . . . . . . 1 . . . . . . . . . . . . . . . . . . . Striker 1 | . . . . . . . . . . . . . . . . . . . . . . . . . . . . . 1 Executioner 2 | . . . . . . . . . . . . . . . . . . . . . . . . . . . . . 2 Packrat 2 | . . . . . . . . . . . . . 2 . . . . . . . . . . . . . . . . Samaritan 3 | . . . . . . . . . . . . 3 . . . . . . . . . . . . . . . . . Thug 1 | . . 1 . . . . . . . . . . . . . . . . . . . . . . . . . . . Savage 2 | . . . . . . . 1 . . . . . . . . . 1 . . . . . . . . . . . . Mutant 2 | . . . . . . . . . . . . . . . . . . . . . 2 . . . . . . . . Best Kill Streak 28 | 4 9 2 4 10 17 8 4 3 . 8 5 6 7 . 3 9 4 3 . 2 1 5 . 5 3 13 . 5 28 Combat Bots Only 14 | . 9 2 3 7 12 8 4 3 . 8 4 6 7 . 3 5 3 2 . 2 1 5 . 5 3 11 . 5 14 Max Kills in Single Turn 5 | 1 2 1 3 5 3 5 3 3 . 4 2 3 2 . 1 4 2 2 . 1 1 3 . 3 2 3 . 2 5 Gunslinging . | . . . . . . . . . . . . . . . . . . . . . . . . . . . . . . Exploded 5 | . 2 . 2 3 2 5 3 3 . 4 2 3 1 . 1 2 2 . . . . 3 . 3 2 2 . . 4 Melee . | . . . . . . . . . . . . . . . . . . . . . . . . . . . . . . Uniques/NPCs Destroyed . | . . . . . . . . . . . . . . . . . . . . . . . . . . . . . . Combat | -11 -10 -10 -9 -9 -8 -7 -7 -7 -7 -6 -6 -6 -6 -6 -5 -5 -5 -5 -5 -4 -4 -4 -4 -3 -3 -3 -2 -2 -1 -------- Run | Scr Mat Min Mat Sto Mat Fac Low Low Dat Pro Fac Low Low Zio Pro Fac Ext Cet Arc Fac Upp Upp Zhi Pro Res Qua Res DSF Acc Damage Taken 29316 | . 305 36 1048 678 1817 871 433 298 . 1774 380 337 120 . 605 4241 821 383 205 791 149 407 . 91 1365 973 . 1104 10084 Core 3382 | . 71 . 154 75 276 105 60 . . 250 37 14 18 . 36 780 68 23 . 27 . . . . 35 51 . 55 1247 Absorbed by Shields 3771 | . . . . . 48 . . . . . 15 104 35 . . 95 151 31 . . . . . . 156 1029 . 676 1431 Reduced by Siege Mode 878 | . . . . . . . . . . . . . . . . . . . . . 9 6 . . 62 130 . 165 506 Redirected to Shielding 58 | . . . . . . . . . . . . . . . . . . . . . . . . . . . . . 58 Regen/Repaired (Parts) 620 | . . . . 138 . . . . . . . . . . . . . . . 482 . . . . . . . . . Core Remaining (%) 63 | 100 . 71 . 42 49 . . . . 40 . . . . 87 . . . 12 . . . . 97 . 93 . 96 16 Volleys Fired 1085 | 17 24 15 97 73 120 54 11 7 . 41 34 39 23 1 16 65 37 21 3 21 7 16 . 13 88 80 . 23 139 Largest 5 | 2 2 2 2 2 2 3 3 3 . 3 3 3 3 1 3 3 3 3 3 4 4 4 . 1 4 4 . 5 4 Hottest 343 | 60 60 60 101 96 96 144 144 144 . 135 165 186 186 90 186 139 133 167 145 188 188 243 . 90 243 167 . 228 343 Shots Fired 2316 | 34 48 29 192 135 219 139 20 16 . 69 58 51 27 1 34 159 73 58 6 82 24 55 . 13 155 243 . 110 266 Gun 893 | 34 48 29 190 79 . . . . . 6 . . . . . 122 17 . 1 40 12 12 . . 23 214 . 66 . Cannon 1217 | . . . . 47 195 136 16 12 . 49 53 43 20 1 21 26 48 58 5 42 12 40 . 9 117 19 . 44 204 Launcher 189 | . . . 2 9 24 3 4 4 . 14 5 8 7 . 13 11 8 . . . . 3 . 4 . 8 . . 62 Special 17 | . . . . . . . . . . . . . . . . . . . . . . . . . 15 2 . . . Kinetic 1779 | 17 24 26 130 121 195 133 16 12 . 48 43 17 4 . 16 146 65 58 6 82 22 50 . . 72 218 . 110 148 Thermal 220 | . . . 4 5 . 3 . . . . 9 26 16 1 5 2 . . . . 2 2 . 9 68 15 . . 53 Explosive 151 | . . . 2 9 24 3 4 4 . 14 2 . . . . 4 8 . . . . 3 . 4 . 8 . . 62 Electromagnetic 149 | 17 24 3 56 . . . . . . 7 4 8 7 . 13 7 . . . . . . . . . . . . 3 Robot Hit Streak 33 | 5 7 13 16 14 12 12 12 14 . 14 11 13 5 . 7 14 7 10 3 9 19 12 . . 21 19 . 15 33 Robot Miss Streak 12 | 3 3 3 3 2 6 3 5 1 . 2 2 2 1 . 2 3 4 9 12 3 . 4 . . 2 4 . 3 5 Penetration Max 2 | . . . . . . 1 . . . . . . . . . 2 1 1 . 1 1 1 . . 1 1 . 1 1 Secondary Targets 9 | . 2 . 2 . . . . . . . . . . . . 2 . . . . . . . . . 3 . . . Max Gunslinging Chain 1 | . 1 . 1 . . . . . . . . . . . . 1 . . . . . . . . . 1 . . . Shots Hit Robots 1408 | 16 28 19 147 95 135 73 12 10 . 54 23 33 9 . 18 102 29 30 3 46 15 27 7 . 74 163 . 71 169 Core Hits 916 | 8 14 13 56 45 95 37 9 10 . 49 15 22 17 . 17 98 26 13 1 18 5 16 4 7 28 82 . 31 180 Critical Kills 31 | . . . . . . . . . . . . . . . . 7 5 3 . 2 1 . . . 1 11 . 1 . Critical Parts Destroyed 39 | . . . 1 . . . . . . . . . . . . 9 . 1 . 4 2 1 . . 1 14 . 6 . Critical Strikes 152 | . . . 1 4 13 9 1 . . 3 1 1 . . 2 16 7 7 . 12 4 3 2 . 4 29 . 11 22 Destroy 74 | . . . 1 . . . . . . . . . . . . 16 6 4 . 6 3 1 . . 2 28 . 7 . Blast 75 | . . . . 4 13 9 1 . . 2 1 1 . . 2 . 1 3 . 6 1 2 . . 2 1 . 4 22 Corrupt 1 | . . . . . . . . . . 1 . . . . . . . . . . . . . . . . . . . Impale 2 | . . . . . . . . . . . . . . . . . . . . . . . 2 . . . . . . Melee Attacks 45 | . . . . . . . . . . . . . . . . . . 38 . . . . 7 . . . . . . Impact 38 | . . . . . . . . . . . . . . . . . . 38 . . . . . . . . . . . Slashing . | . . . . . . . . . . . . . . . . . . . . . . . . . . . . . . Piercing 7 | . . . . . . . . . . . . . . . . . . . . . . . 7 . . . . . . Sneak Attacks . | . . . . . . . . . . . . . . . . . . . . . . . . . . . . . . Combat Hostiles . | . . . . . . . . . . . . . . . . . . . . . . . . . . . . . . Follow-up Attacks . | . . . . . . . . . . . . . . . . . . . . . . . . . . . . . . Damage Inflicted 66293 | 172 529 262 2542 3042 5807 2432 640 662 . 3560 877 1225 831 . 804 5004 1643 1159 100 1739 450 1366 473 352 3207 4717 . 2101 20597 Guns 12720 | 172 336 262 2268 1155 . . . . . 118 . . . . . 2127 101 . 25 907 213 259 . . 594 3053 . 1130 . Cannons 25156 | . . . . 837 3536 2090 270 224 . 1090 643 743 219 . 363 503 607 1159 64 832 237 693 . . 2214 310 . 971 7551 Explosions 27430 | . 193 . 254 1023 2211 342 370 438 . 2352 234 482 612 . 441 2374 935 . . . . 414 . 352 360 1354 . . 12689 Melee 473 | . . . . . . . . . . . . . . . . . . . . . . . 473 . . . . . . Ramming 514 | . . . 20 27 60 . . . . . . . . . . . . . 11 . . . . . 39 . . . 357 Kinetic 33071 | 65 182 232 1533 1973 3536 2004 270 224 . 1059 615 300 78 . 266 2630 708 1159 89 1739 450 952 . . 1764 3211 . 2101 5931 Thermal 5116 | . 193 . 185 19 87 86 . . . . . 501 141 . 97 722 . . . . . . . . 1404 180 . . 1501 Explosive 23278 | . . . 118 1023 2124 342 370 438 . 2352 . . . . . 795 935 . . . . 414 . 352 . 1326 . . 12689 Electromagnetic 3841 | 107 154 30 686 . . . . . . 149 262 424 612 . 441 857 . . . . . . . . . . . . 119 Impact . | . . . . . . . . . . . . . . . . . . . . . . . . . . . . . . Slashing . | . . . . . . . . . . . . . . . . . . . . . . . . . . . . . . Piercing 473 | . . . . . . . . . . . . . . . . . . . . . . . 473 . . . . . . Highest Corruption 51 | . . . . 51 . 4 4 4 4 21 . . . . 10 10 16 24 39 4 4 4 4 4 7 16 . 7 26 Average Corruption 7 | . . . . 18 . 1 4 4 4 6 . . . . 10 7 11 22 29 1 4 4 4 4 5 9 . 6 15 Corruption Purged . | . . . . . . . . . . . . . . . . . . . . . . . . . . . . . . Corruption Blocked . | . . . . . . . . . . . . . . . . . . . . . . . . . . . . . . Effects 427 | . . . . 23 . 10 19 19 3 36 . . . . . 9 55 19 17 10 39 29 1 24 21 32 . 5 56 Message Errors 90 | . . . . 8 . 2 2 4 . 11 . . . . . 1 10 5 3 4 8 4 . 8 3 10 . 1 6 Matter Fused 119 | . . . . 2 . 2 5 9 1 13 . . . . . 4 16 4 6 3 9 6 . 8 8 7 . 2 14 Heat Flow Errors 41 | . . . . 3 . . 1 1 . 5 . . . . . 1 5 2 2 . 3 3 1 . 1 3 . 1 9 Energy Discharges 45 | . . . . 3 . 1 2 1 1 2 . . . . . . 5 2 2 . 6 5 . 6 2 1 . . 6 Parts Rejected 6 | . . . . . . 2 . . . . . . . . . . 1 . . . . . . . . 1 . . 2 Data Loss (minor) 62 | . . . . 3 . 3 6 2 1 2 . . . . . 1 10 5 2 2 9 3 . 2 2 2 . 1 6 Data Loss (major) 16 | . . . . 2 . . 1 1 . 2 . . . . . 1 1 . . . 2 3 . . . 1 . . 2 Misfires 18 | . . . . . . . 1 1 . . . . . . . 1 4 1 . 1 2 2 . . 2 1 . . 2 Alerts 9 | . . . . . . . 1 . . 1 . . . . . . . . 1 . . 3 . . 1 1 . . 1 Misdirections 3 | . . . . . . . . . . . . . . . . . . . . . . . . . . . . . 3 Weapon Failures 18 | . . . . 2 . . . . . . . . . . . . 3 . 1 . . . . . 2 5 . . 5 Overload Shots . | . . . . . . . . . . . . . . . . . . . . . . . . . . . . . . Overflow Damage 2428 | . . . 35 31 110 35 37 46 . 39 1 63 36 . 5 189 34 . . 18 . 34 81 47 219 . . . 1368 Projectiles 963 | . . . . 17 86 35 19 . . 12 1 63 36 . . 28 18 . . 18 . 9 . . 97 . . . 524 Explosions 1292 | . . . 28 14 24 . 18 46 . 27 . . . . 5 161 16 . . . . 25 . 47 107 . . . 774 Melee 173 | . . . 7 . . . . . . . . . . . . . . . . . . . 81 . 15 . . . 70 Knockbacks 158 | . . . . 2 37 19 . 1 . 4 9 . . . 2 8 3 4 . 4 . 4 . . 16 . . 4 41 Impact 3 | . . . . 1 . . . . . . . . . . . . . . . . . . . . . . . . 2 Kinetic 144 | . . . . 1 32 19 . 1 . 4 8 . . . 2 8 3 4 . 4 . 4 . . 15 . . 4 35 Secondary 11 | . . . . . 5 . . . . . 1 . . . . . . . . . . . . . 1 . . . 4 Self-Inflicted Damage 1902 | . 40 . 134 . 119 . 12 . . 272 . 12 . . 6 61 63 . . 97 . . . 26 35 . . . 1025 Shots 39 | . 1 . 5 . 3 . 1 . . 5 . 1 . . 1 3 1 . . 1 . . . 1 2 . . . 14 Rammed 37 | . . . 2 4 9 . . . . . . . . . . . . . 1 . . . . . 1 . . . 20 Targets Rammed 39 | . . . 2 4 10 . . . . . . . . . . . . . 1 . . . . . 1 . . . 21 Kicked . | . . . . . . . . . . . . . . . . . . . . . . . . . . . . . . Crushed 2 | . . . . . 1 . . . . . . . . . . . . . . . . . . . . . . . 1 Highest Temperature 426 | 40 38 12 163 222 174 426 229 83 . 258 117 95 126 10 381 145 229 318 224 255 216 335 65 74 238 241 . 56 192 Average Temperature 73 | 22 16 5 56 80 43 125 73 56 . 60 58 20 35 7 181 38 52 110 88 96 85 114 45 40 64 109 . 56 47 Received Heat Transfer 4241 | . 48 21 459 243 923 237 96 30 . 339 172 78 45 . 135 300 77 18 18 48 18 33 . . 63 123 . . 717 Effects 2 | . . . . . . . . . . . . . . . 1 . . . . 1 . . . . . . . . . Energy Bleed 2 | . . . . . . . . . . . . . . . 1 . . . . 1 . . . . . . . . . Siege Activations 28 | . . . . . . . . . . . . . . . . . . 2 . 1 2 3 . . 5 7 . 4 4 Total Turns 545 | . . . . . . . . . . . . . . . . . . 34 . 7 21 66 . . 65 139 . 61 152 Longest Duration 103 | . . . . . . . . . . . . . . . . . . 27 . 7 13 33 . . 17 64 . 22 103 Robots Corrupted 7 | . . . . . . . . . . 1 . . 3 . 2 1 . . . . . . . . . . . . . Combat Hostiles 6 | . . . . . . . . . . . . . 3 . 2 1 . . . . . . . . . . . . . Parts Fried 23 | . . . 5 . . . . . . 1 . 4 4 . 5 1 . . . . . . . . . . . . 3 Impact Corruptions 6 | . . . 1 . . . . . . . . . . . . . . . . . . . . . 1 . . . 4 Robots Melted . | . . . . . . . . . . . . . . . . . . . . . . . . . . . . . . Combat Hostiles . | . . . . . . . . . . . . . . . . . . . . . . . . . . . . . . Parts Melted 1 | . . . . . . . . . . . . 1 . . . . . . . . . . . . . . . . . Heat Transferred 3396 | . 200 . 348 37 50 111 . . . . . 642 185 . 148 685 . . . . . . . . 200 50 . . 740 Parts Sabotaged 8 | . . . . . . . . . . . . . . . . 3 . . . . . . . . . . . . 5 Parts Stolen . | . . . . . . . . . . . . . . . . . . . . . . . . . . . . . . Parts Stripped . | . . . . . . . . . . . . . . . . . . . . . . . . . . . . . . Power Chain Reactions 13 | . 2 . 3 . . . . . . . . 1 1 . 1 2 . . . . . . . . 2 1 . . . Missiles Intercepted . | . . . . . . . . . . . . . . . . . . . . . . . . . . . . . . Alert | -11 -10 -10 -9 -9 -8 -7 -7 -7 -7 -6 -6 -6 -6 -6 -5 -5 -5 -5 -5 -4 -4 -4 -4 -3 -3 -3 -2 -2 -1 ------- Run | Scr Mat Min Mat Sto Mat Fac Low Low Dat Pro Fac Low Low Zio Pro Fac Ext Cet Arc Fac Upp Upp Zhi Pro Res Qua Res DSF Acc Peak Influence 3039 | 25 317 173 455 1063 1247 789 . . . . 240 . . . . 650 583 746 478 676 . . . . 414 779 438 574 3039 Initial 528 | . 16 123 35 191 448 528 . . . . 25 . . . . . 308 158 264 167 . . . . . 169 438 332 344 Average 484 | 11 83 91 212 629 808 591 . . . . 57 . . . . 199 378 391 457 484 . . . . 155 286 438 499 1558 Maximum Alert Level 5 | . 1 . 2 3 4 3 . . . . 1 . . . . 2 2 3 2 2 . . . . 2 3 2 2 5 Low Security (%) 29 | 100 87 100 40 3 . . . . . . 96 . . . . 57 . 10 . 9 . . . . 63 52 . . . Level 1 20 | . 12 . 54 9 2 . . . . . 3 . . . . 24 58 25 12 17 . . . . 20 31 . 25 10 Level 2 33 | . . . 4 41 48 92 . . . . . . . . . 17 41 62 87 73 . . . . 15 6 100 74 7 Level 3 7 | . . . . 45 23 7 . . . . . . . . . . . . . . . . . . . 10 . . 15 Level 4 2 | . . . . . 25 . . . . . . . . . . . . . . . . . . . . . . . 3 Level 5 2 | . . . . . . . . . . . . . . . . . . . . . . . . . . . . . 22 High Security 3 | . . . . . . . . . . . . . . . . . . . . . . . . . . . . . 40 Max Security . | . . . . . . . . . . . . . . . . . . . . . . . . . . . . . . Sterilizations 1 | . . . . . . . . . . . . . . . . . . . . . . . . . . . . 1 . Squads Dispatched 104 | . 1 . 4 8 11 5 . . . 1 1 . . . . 10 7 . . 6 . . . . 5 9 . 2 34 Investigation 14 | . 1 . 1 . 3 1 . . . . . . . . . 2 1 . . 2 . . . . 2 . . . 1 Extermination 16 | . . . . . . 2 . . . . 1 . . . . 1 . . . 3 . . . . 3 3 . . 3 Reinforcement 36 | . . . 3 4 6 2 . . . . . . . . . 4 6 . . 1 . . . . . 4 . 2 4 Assault 27 | . . . . . 2 . . . . 1 . . . . . . . . . . . . . . . 1 . . 23 Garrison 11 | . . . . 4 . . . . . . . . . . . 3 . . . . . . . . . 1 . . 3 Intercept . | . . . . . . . . . . . . . . . . . . . . . . . . . . . . . . Searches Triggered . | . . . . . . . . . . . . . . . . . . . . . . . . . . . . . . Data Miner Redirects 5 | . . . . . . . . . . . . . . . . 1 1 . . 1 . . . . . 1 . . 1 Construction Impeded 12 | . . . . 1 3 . . . . . . . . . . 2 3 . . . . . . . . 1 . . 2 Haulers Reinforced 3 | . . . . . . 1 . . . . . . . . . . . . . . . . . . . . . . 2 Active Scanning Responses . | . . . . . . . . . . . . . . . . . . . . . . . . . . . . . . Cargo Convoy Interrupts 1 | . . . . . . . . . . . . . . . . 1 . . . . . . . . . . . . . Stealth | -11 -10 -10 -9 -9 -8 -7 -7 -7 -7 -6 -6 -6 -6 -6 -5 -5 -5 -5 -5 -4 -4 -4 -4 -3 -3 -3 -2 -2 -1 --------- Run | Scr Mat Min Mat Sto Mat Fac Low Low Dat Pro Fac Low Low Zio Pro Fac Ext Cet Arc Fac Upp Upp Zhi Pro Res Qua Res DSF Acc Distress Signals 24 | . . . 3 5 4 . . . . . . . . . . 3 1 1 . 1 . . . . 1 2 . . 3 Communications Jammed . | . . . . . . . . . . . . . . . . . . . . . . . . . . . . . . Distress Signals . | . . . . . . . . . . . . . . . . . . . . . . . . . . . . . . Times Spotted 603 | . 13 4 34 37 67 22 15 8 . 20 12 13 9 . 9 58 25 15 6 14 2 15 . 4 17 31 . 9 144 Peak Tracking Total 27 | . 8 3 5 5 10 8 9 3 . 12 4 7 5 . 4 12 4 6 2 3 1 5 . 4 4 7 . 4 27 Tactical Retreats 27 | . . . 1 . 6 1 . 1 . 2 . 1 . . . 5 . . . . . . . . . . . . 10 Traps | -11 -10 -10 -9 -9 -8 -7 -7 -7 -7 -6 -6 -6 -6 -6 -5 -5 -5 -5 -5 -4 -4 -4 -4 -3 -3 -3 -2 -2 -1 ------- Run | Scr Mat Min Mat Sto Mat Fac Low Low Dat Pro Fac Low Low Zio Pro Fac Ext Cet Arc Fac Upp Upp Zhi Pro Res Qua Res DSF Acc Traps Triggered 17 | . 2 . 5 1 . 1 . . . . . . . . . 1 2 . . 1 . . . . 2 . . . 2 Indirectly 1 | . . . . . . . . . . . . . . . . 1 . . . . . . . . . . . . . Trap Hack Attempts . | . . . . . . . . . . . . . . . . . . . . . . . . . . . . . . Triggered . | . . . . . . . . . . . . . . . . . . . . . . . . . . . . . . Disarmed . | . . . . . . . . . . . . . . . . . . . . . . . . . . . . . . Reprogrammed . | . . . . . . . . . . . . . . . . . . . . . . . . . . . . . . Reused . | . . . . . . . . . . . . . . . . . . . . . . . . . . . . . . Traps Extracted . | . . . . . . . . . . . . . . . . . . . . . . . . . . . . . . Installed . | . . . . . . . . . . . . . . . . . . . . . . . . . . . . . . Triggered 13 | . . . . . . . 2 . . . . . 2 . 1 1 . . . . 3 4 . . . . . . . Machines | -11 -10 -10 -9 -9 -8 -7 -7 -7 -7 -6 -6 -6 -6 -6 -5 -5 -5 -5 -5 -4 -4 -4 -4 -3 -3 -3 -2 -2 -1 ---------- Run | Scr Mat Min Mat Sto Mat Fac Low Low Dat Pro Fac Low Low Zio Pro Fac Ext Cet Arc Fac Upp Upp Zhi Pro Res Qua Res DSF Acc Machines Disabled 57 | . . . 2 5 3 1 . . . 1 2 . 2 . . 9 2 5 2 9 2 . . . 3 4 . . 5 Max in Single Turn 3 | . . . 1 1 1 1 . . . 1 1 . 2 . . 3 1 1 1 2 1 . . . 1 1 . . 2 Garrison Access 1 | . . . . . . . . . . . . . . . . . . . . . . . . . . 1 . . . Energy Cycler 1 | . . . . . . . . . . . . . . . . . . . . . . . . . . . . . 1 Machines Sabotaged . | . . . . . . . . . . . . . . . . . . . . . . . . . . . . . . Garrisons Compromised . | . . . . . . . . . . . . . . . . . . . . . . . . . . . . . . Overloaded Fab Kills . | . . . . . . . . . . . . . . . . . . . . . . . . . . . . . . Hacking | -11 -10 -10 -9 -9 -8 -7 -7 -7 -7 -6 -6 -6 -6 -6 -5 -5 -5 -5 -5 -4 -4 -4 -4 -3 -3 -3 -2 -2 -1 --------- Run | Scr Mat Min Mat Sto Mat Fac Low Low Dat Pro Fac Low Low Zio Pro Fac Ext Cet Arc Fac Upp Upp Zhi Pro Res Qua Res DSF Acc Machines Accessed 68 | . 2 . 7 5 8 10 2 1 4 . 4 . 3 1 . 3 3 1 . 3 . . 4 . 3 1 1 . 2 Terminals 41 | . 2 . 6 4 6 6 . . . . 3 . 1 . . 3 3 1 . 2 . . . . 1 1 1 . 1 Fabricators 3 | . . . . . . 2 . . . . . . . . . . . . . . . . . . 1 . . . . Repair Stations 2 | . . . . 1 . . . . . . . . . . . . . . . 1 . . . . . . . . . Recycling Units 7 | . . . 1 . 1 2 . . . . 1 . . . . . . . . . . . . . 1 . . . 1 Scanalyzers 1 | . . . . . 1 . . . . . . . . . . . . . . . . . . . . . . . . Garrison Access . | . . . . . . . . . . . . . . . . . . . . . . . . . . . . . . Total Hacks 217 | . 4 . 18 13 24 34 7 1 30 . 9 . 12 5 . 7 9 3 . 13 . . 17 . 6 1 1 . 3 Successful 139 | . 1 . 11 7 14 18 7 1 30 . 4 . 12 5 . 1 3 . . 6 . . 17 . 1 . 1 . . Failed 75 | . 2 . 6 5 10 16 . . . . 5 . . . . 6 6 3 . 7 . . . . 5 1 . . 3 Catastrophic 16 | . . . . . 3 3 . . . . 1 . . . . 2 1 . . 2 . . . . 1 1 . . 2 Database Lockouts 3 | . 1 . 1 1 . . . . . . . . . . . . . . . . . . . . . . . . . Manual 60 | . 2 . 11 2 8 22 . . . . 2 . . . . 3 6 1 . 1 1 . . . 1 . . . . Terminals 117 | . 4 . 17 8 21 23 . . . . 8 . 7 . . 7 9 3 . 5 . . . . 2 1 1 . 1 Fabricators 7 | . . . . . . 4 . . . . . . . . . . . . . . . . . . 3 . . . . Repair Stations 13 | . . . . 5 . . . . . . . . . . . . . . . 8 . . . . . . . . . Recycling Units 13 | . . . 1 . 1 7 . . . . 1 . . . . . . . . . . . . . 1 . . . 2 Scanalyzers 2 | . . . . . 2 . . . . . . . . . . . . . . . . . . . . . . . . Garrison Access . | . . . . . . . . . . . . . . . . . . . . . . . . . . . . . . Terminal Hacks 117 | . 1 . 8 5 11 10 7 1 30 . 4 . 12 5 . 1 3 . . 1 . . 17 . . . 1 . . Record 33 | . . . . . . . 6 . 11 . . . 11 . . . . . . . . . 5 . . . . . . Part Schematic 20 | . . . . . . . . . 11 . . . . 5 . . . . . . . . 4 . . . . . . Robot Schematic 5 | . . . . . . . . . 5 . . . . . . . . . . . . . . . . . . . . Robot Analysis 11 | . 1 . 3 1 2 . . . . . . . . . . . . . . . . . 4 . . . . . . Prototype ID Bank 12 | . . . 1 1 2 . . . 3 . 1 . . . . . . . . . . . 4 . . . . . . Open Door 5 | . . . . 2 . . 1 1 . . . . 1 . . . . . . . . . . . . . . . . Open DSF 1 | . . . . . . . . . . . . . . . . . . . . . . . . . . . 1 . . Branch Access Points 4 | . . . 1 . . 1 . . . . 1 . . . . 1 . . . . . . . . . . . . . Emergency Access Points 2 | . . . . . . 2 . . . . . . . . . . . . . . . . . . . . . . . Terminal Index 3 | . . . . . 1 1 . . . . . . . . . . . . . 1 . . . . . . . . . Fabricator Index 1 | . . . . . . . . . . . 1 . . . . . . . . . . . . . . . . . . Alert Level 1 | . . . . . 1 . . . . . . . . . . . . . . . . . . . . . . . . Unreport Threat 5 | . . . . . 2 1 . . . . . . . . . . 2 . . . . . . . . . . . . Locate Traps 2 | . . . . 1 1 . . . . . . . . . . . . . . . . . . . . . . . . Security Status 1 | . . . . . . 1 . . . . . . . . . . . . . . . . . . . . . . . Surveillance Status 1 | . . . . . . 1 . . . . . . . . . . . . . . . . . . . . . . . Patrol Status 1 | . . . . . . 1 . . . . . . . . . . . . . . . . . . . . . . . Recall Investigation 1 | . . . . . . . . . . . . . . . . . 1 . . . . . . . . . . . . Hauler Manifests 3 | . . . 1 . 1 1 . . . . . . . . . . . . . . . . . . . . . . . Zone Layout 5 | . . . 2 . 1 1 . . . . 1 . . . . . . . . . . . . . . . . . . Fabricator Hacks 3 | . . . . . . 2 . . . . . . . . . . . . . . . . . . 1 . . . . Network Status 1 | . . . . . . 1 . . . . . . . . . . . . . . . . . . . . . . . Load Schematic 1 | . . . . . . 1 . . . . . . . . . . . . . . . . . . . . . . . Build 1 | . . . . . . . . . . . . . . . . . . . . . . . . . 1 . . . . Repair Station Hacks 7 | . . . . 2 . . . . . . . . . . . . . . . 5 . . . . . . . . . Scan Component 4 | . . . . 1 . . . . . . . . . . . . . . . 3 . . . . . . . . . Repair 3 | . . . . 1 . . . . . . . . . . . . . . . 2 . . . . . . . . . Recycling Unit Hacks 4 | . . . 1 . 1 2 . . . . . . . . . . . . . . . . . . . . . . . Retrieve Components 4 | . . . 1 . 1 2 . . . . . . . . . . . . . . . . . . . . . . . Scanalyzer 2 | . . . . . 2 . . . . . . . . . . . . . . . . . . . . . . . . Insert Component 1 | . . . . . 1 . . . . . . . . . . . . . . . . . . . . . . . . Analyze 1 | . . . . . 1 . . . . . . . . . . . . . . . . . . . . . . . . Garrison Access Hacks . | . . . . . . . . . . . . . . . . . . . . . . . . . . . . . . Unauthorized Hacks 6 | . . . 2 . . 4 . . . . . . . . . . . . . . . . . . . . . . . Terminals 4 | . . . 2 . . 2 . . . . . . . . . . . . . . . . . . . . . . . Assimilate 1 | . . . . . . 1 . . . . . . . . . . . . . . . . . . . . . . . Botnet 3 | . . . 2 . . 1 . . . . . . . . . . . . . . . . . . . . . . . Fabricators . | . . . . . . . . . . . . . . . . . . . . . . . . . . . . . . Repair Stations . | . . . . . . . . . . . . . . . . . . . . . . . . . . . . . . Recycling Units 2 | . . . . . . 2 . . . . . . . . . . . . . . . . . . . . . . . Reject 1 | . . . . . . 1 . . . . . . . . . . . . . . . . . . . . . . . Mask 1 | . . . . . . 1 . . . . . . . . . . . . . . . . . . . . . . . Scanalyzers . | . . . . . . . . . . . . . . . . . . . . . . . . . . . . . . Garrison Access . | . . . . . . . . . . . . . . . . . . . . . . . . . . . . . . Data Cores Recovered . | . . . . . . . . . . . . . . . . . . . . . . . . . . . . . . Used . | . . . . . . . . . . . . . . . . . . . . . . . . . . . . . . Hacking Detections 44 | . 1 . 3 2 6 9 . . . . 4 . 1 . . 3 3 2 . 3 . . . . 3 1 1 . 2 Full Trace Events 11 | . . . . 1 3 1 . . . . . . . . . 2 1 . . 2 . . . . 1 . . . . Feedback Events . | . . . . . . . . . . . . . . . . . . . . . . . . . . . . . . Feedback Blocked . | . . . . . . . . . . . . . . . . . . . . . . . . . . . . . . Robot Schematics Acquired 8 | . . . . . . . . . 5 . . . . 3 . . . . . . . . . . . . . . . Robots Built . | . . . . . . . . . . . . . . . . . . . . . . . . . . . . . . Authchips . | . . . . . . . . . . . . . . . . . . . . . . . . . . . . . . Time . | . . . . . . . . . . . . . . . . . . . . . . . . . . . . . . Total Robot Build Rating . | . . . . . . . . . . . . . . . . . . . . . . . . . . . . . . Part Schematics Acquired 35 | . . . . . 1 . . . 11 . . . . 18 . . . . . . . . 4 . . 1 . . . Parts Built 1 | . . . . . . . . . . . . . . . . . . . . . . . . . 1 . . . . Authchips . | . . . . . . . . . . . . . . . . . . . . . . . . . . . . . . Time 222 | . . . . . . . . . . . . . . . . . . . . . . . . . 222 . . . . Total Part Build Rating 9 | . . . . . . . . . . . . . . . . . . . . . . . . . 9 . . . . Parts Repaired 3 | . . . . 1 . . . . . . . . . . . . . . . 2 . . . . . . . . . Time 212 | . . . . 38 . . . . . . . . . . . . . . . 174 . . . . . . . . . Parts Recycled . | . . . . . . . . . . . . . . . . . . . . . . . . . . . . . . Recycled Matter . | . . . . . . . . . . . . . . . . . . . . . . . . . . . . . . Retrieved Matter . | . . . . . . . . . . . . . . . . . . . . . . . . . . . . . . Retrieved Components 27 | . . . 10 . 10 7 . . . . . . . . . . . . . . . . . . . . . . . Parts Scanalyzed 1 | . . . . . 1 . . . . . . . . . . . . . . . . . . . . . . . . Part Schematics Acquired 1 | . . . . . 1 . . . . . . . . . . . . . . . . . . . . . . . . Parts Damaged . | . . . . . . . . . . . . . . . . . . . . . . . . . . . . . . Bothacking | -11 -10 -10 -9 -9 -8 -7 -7 -7 -7 -6 -6 -6 -6 -6 -5 -5 -5 -5 -5 -4 -4 -4 -4 -3 -3 -3 -2 -2 -1 ------------ Run | Scr Mat Min Mat Sto Mat Fac Low Low Dat Pro Fac Low Low Zio Pro Fac Ext Cet Arc Fac Upp Upp Zhi Pro Res Qua Res DSF Acc Used RIF Installer . | . . . . . . . . . . . . . . . . . . . . . . . . . . . . . . Robots Hacked . | . . . . . . . . . . . . . . . . . . . . . . . . . . . . . . Non-combat . | . . . . . . . . . . . . . . . . . . . . . . . . . . . . . . Combat . | . . . . . . . . . . . . . . . . . . . . . . . . . . . . . . Robot Hacks Applied . | . . . . . . . . . . . . . . . . . . . . . . . . . . . . . . Relay Couplers Released 2 | . . . . . . . . . . . . . . . . . . . . . . . . . . 2 . . . Machine Destruction 2 | . . . . . . . . . . . . . . . . . . . . . . . . . . 2 . . . Fabnet Peak Effective % . | . . . . . . . . . . . . . . . . . . . . . . . . . . . . . . Robots Rewired 11 | . . . . . . . . . . . . 2 . . . . 6 . . . 3 . . . . . . . . Allies Hacked . | . . . . . . . . . . . . . . . . . . . . . . . . . . . . . . Hacks Repelled . | . . . . . . . . . . . . . . . . . . . . . . . . . . . . . . Allies | -11 -10 -10 -9 -9 -8 -7 -7 -7 -7 -6 -6 -6 -6 -6 -5 -5 -5 -5 -5 -4 -4 -4 -4 -3 -3 -3 -2 -2 -1 -------- Run | Scr Mat Min Mat Sto Mat Fac Low Low Dat Pro Fac Low Low Zio Pro Fac Ext Cet Arc Fac Upp Upp Zhi Pro Res Qua Res DSF Acc Total Allies 50 | . . 3 . 10 . 1 2 . . 1 . 2 . 2 . . 21 5 . . 3 . . . . . . . . Largest Group 10 | . . 3 1 10 10 1 2 . . 1 . 2 2 2 2 1 7 6 6 5 3 3 . . . . . . . Highest-Rated Group 633 | . . 40 8 88 88 10 51 . . 96 . 50 50 53 53 21 342 633 626 468 130 130 . . . . . . . Highest-Rated Ally 159 | . . 16 8 16 16 10 31 . . 96 . 30 30 28 28 21 159 159 153 96 46 46 . . . . . . . Total Orders 7 | . . . . 7 . . . . . . . . . . . . . . . . . . . . . . . . . EXPLORE 7 | . . . . 7 . . . . . . . . . . . . . . . . . . . . . . . . . Ally Attacks 407 | . . 8 . 4 92 . 14 . . 36 . . 4 . 5 . 61 84 28 47 2 22 . . . . . . . Total Damage 10115 | . . 69 . 38 783 . 312 . . 1639 . . 142 . 97 . 1432 1866 1043 2180 62 452 . . . . . . . Kills 70 | . . 3 . . 9 . 3 . . 5 . . 1 . 1 . 14 15 4 11 . 4 . . . . . . . Allies Corrupted 1 | . . . . . . . . . . . . . . . . . . . . . . 1 . . . . . . . Allies Melted . | . . . . . . . . . . . . . . . . . . . . . . . . . . . . . . Intel | -11 -10 -10 -9 -9 -8 -7 -7 -7 -7 -6 -6 -6 -6 -6 -5 -5 -5 -5 -5 -4 -4 -4 -4 -3 -3 -3 -2 -2 -1 ------- Run | Scr Mat Min Mat Sto Mat Fac Low Low Dat Pro Fac Low Low Zio Pro Fac Ext Cet Arc Fac Upp Upp Zhi Pro Res Qua Res DSF Acc Robot Analysis Total 11 | . 1 . 3 1 2 . . . . . . . . . . . . . . . . . 4 . . . . . . Derelict Logs Recovered 17 | . . 2 . . . . 2 1 . 2 . 3 . 2 2 . . . . . 1 2 . . . . . . . Drone Launches 30 | . . . . 30 . . . . . . . . . . . . . . . . . . . . . . . . . Drone Recoveries 16 | . . . . 16 . . . . . . . . . . . . . . . . . . . . . . . . . Exploration | -11 -10 -10 -9 -9 -8 -7 -7 -7 -7 -6 -6 -6 -6 -6 -5 -5 -5 -5 -5 -4 -4 -4 -4 -3 -3 -3 -2 -2 -1 ------------- Run | Scr Mat Min Mat Sto Mat Fac Low Low Dat Pro Fac Low Low Zio Pro Fac Ext Cet Arc Fac Upp Upp Zhi Pro Res Qua Res DSF Acc Turns Passed 28902 | 87 269 778 1595 1090 1652 1272 965 1010 154 1697 905 1581 1112 1271 813 1264 1393 449 356 1147 1523 1224 303 1148 1288 785 4 297 1470 Spaces Moved 16016 | 31 148 625 765 522 730 716 617 607 102 1036 541 1038 777 930 539 822 724 149 110 540 878 678 161 685 414 311 3 105 712 Core 227 | . . . . . . . . . . . . . . . . 69 8 . . . . . . . . . . . 150 Treads 6653 | . . . 308 522 730 252 . . . . . . . . . . 245 149 110 540 878 678 161 685 414 311 3 105 562 Legs 423 | 31 72 . . . . . . . . . . . . . . . 320 . . . . . . . . . . . . Wheels 8393 | . 76 625 457 . . 464 617 607 102 1036 541 1038 777 930 539 584 . . . . . . . . . . . . . Hover . | . . . . . . . . . . . . . . . . . . . . . . . . . . . . . . Flight 320 | . . . . . . . . . . . . . . . . 169 151 . . . . . . . . . . . . Fastest Speed 40 | 120 115 105 105 145 150 115 115 160 145 100 120 135 135 135 120 40 60 162 162 162 162 162 162 158 155 158 158 158 50 Average Speed 143 | 120 117 112 149 145 154 130 145 160 145 138 138 135 135 135 134 105 152 162 162 164 162 162 162 161 157 158 158 159 135 Slowest Speed 320 | 120 120 115 320 225 230 158 160 160 160 160 160 135 135 135 135 160 200 162 162 242 162 162 162 162 158 158 158 163 160 Overloaded Moves . | . . . . . . . . . . . . . . . . . . . . . . . . . . . . . . Propulsion Burnouts . | . . . . . . . . . . . . . . . . . . . . . . . . . . . . . . Robots Hopped 3 | . . . . . . . . . . . . . . . . 2 1 . . . . . . . . . . . . Cave-ins Triggered 1 | . . . . . . . . . . . . . . . . . 1 . . . . . . . . . . . . Teleports 1 | . . . . . . . . . . . . . . . . . . . . . . . . . . . . . 1 Exploration Rate (%) 60 | 3 31 90 83 94 66 17 67 76 70 95 14 95 76 84 76 25 59 48 87 14 86 82 60 79 19 45 . 87 25 Regions Visited 29 Branch Regions 18 Pre-discovered Areas 9 | . . . . . . . 2 . 1 . . 1 . 1 . . . . . . . 1 3 . . . . . . Known Exits Taken 18 | . . . 1 . . 1 1 . . . 1 . . 1 1 1 1 1 1 1 1 1 1 1 1 1 1 . . Unknown Exits Taken 10 | 1 1 1 . 1 1 . . 1 1 1 . 1 1 . . . . . . . . . . . . . . . . Scrap Searched 37 | . . 1 . . . . 7 8 . 5 . 2 2 4 1 . . . . . 2 2 . 3 . . . . . Spaces Dug 163 | . . . . . 21 3 2 . . . 13 3 6 . . 1 11 . . . 1 56 . 15 19 6 . . 6 Terrain Destroyed 1869 | . 7 . 25 73 204 62 46 32 . 142 37 9 12 . 5 105 105 10 1 56 11 90 . 50 104 60 . 15 608 Melee . | . . . . . . . . . . . . . . . . . . . . . . . . . . . . . . Projectile 425 | . . . . 11 46 26 2 2 . 4 19 8 7 . 5 17 23 10 1 33 11 34 . 9 82 13 . 15 47 AOE 1439 | . 7 . 25 62 158 36 44 30 . 138 18 1 5 . . 86 82 . . 23 . 56 . 41 22 44 . . 561 Terrain Rammed . | . . . . . . . . . . . . . . . . . . . . . . . . . . . . . . Walls Destroyed . | . . . . . . . . . . . . . . . . . . . . . . . . . . . . . . Machines Disabled . | . . . . . . . . . . . . . . . . . . . . . . . . . . . . . . Actions | -11 -10 -10 -9 -9 -8 -7 -7 -7 -7 -6 -6 -6 -6 -6 -5 -5 -5 -5 -5 -4 -4 -4 -4 -3 -3 -3 -2 -2 -1 --------- Run | Scr Mat Min Mat Sto Mat Fac Low Low Dat Pro Fac Low Low Zio Pro Fac Ext Cet Arc Fac Upp Upp Zhi Pro Res Qua Res DSF Acc Total 19954 | 49 195 676 1046 726 1034 948 665 631 107 1229 645 1170 814 946 590 1088 955 233 282 743 963 769 187 719 893 474 2 190 985 Wait 1671 | . 4 18 103 72 98 108 15 6 . 89 28 78 5 . 29 112 84 15 148 157 23 63 . . 324 32 . 12 48 Move 15979 | 30 147 624 764 521 729 715 616 606 101 1035 540 1037 776 929 538 817 720 148 109 539 877 677 160 684 413 310 2 104 711 Hop 3 | . . . . . . . . . . . . . . . . 2 1 . . . . . . . . . . . . Pick Up 256 | 1 12 8 17 8 17 20 10 4 . 31 6 3 2 3 2 19 29 2 3 5 6 1 1 3 12 6 . 9 16 Fast Attach 132 | 1 . . 11 9 6 6 1 1 3 7 8 . . 3 . 13 13 1 2 2 3 . 9 4 10 4 . 9 6 Attach 138 | . 3 2 5 2 11 9 2 1 . 10 3 . . 1 . 25 8 . 2 4 2 . 1 . 8 6 . 7 26 Detach 24 | . . . . 2 2 3 2 . . 1 1 . . 1 . . . . 1 2 . . 1 . 1 5 . 1 1 Swap 254 | . 3 4 17 13 21 16 4 5 . 12 12 7 5 1 4 15 10 5 6 9 6 11 . 7 19 21 . 9 12 Drop 254 | . 2 5 30 15 20 17 4 1 3 3 13 4 3 7 1 20 19 3 7 4 8 1 8 8 17 10 . 16 5 Fire 1085 | 17 24 15 97 73 120 54 11 7 . 41 34 39 23 1 16 65 37 21 3 21 7 16 . 13 88 80 . 23 139 Melee 45 | . . . . . . . . . . . . . . . . . . 38 . . . . 7 . . . . . . Ram 12 | . . . . . . . . . . . . . . . . . . . . . . . . . . . . . 12 Kick . | . . . . . . . . . . . . . . . . . . . . . . . . . . . . . . Crush 27 | . . . 2 4 10 . . . . . . . . . . . . . 1 . . . . . 1 . . . 9 Escape Stasis 19 | . . . . . . . . . . . . . . . . . 19 . . . . . . . . . . . . Rewire 48 | . . . . . . . . . . . . 2 . . . . 15 . . . 31 . . . . . . . . Trap . | . . . . . . . . . . . . . . . . . . . . . . . . . . . . . . Miscellaneous 7 | . . . . 7 . . . . . . . . . . . . . . . . . . . . . . . . . Route ------- -11/Scrapyard -10/Materials -10/Mines -9/Materials (discovered 5 exits: *Mat x2 / *Min x2 / *Sto) -9/Storage -8/Materials -7/Factory (discovered 2 exits: *Low x2) -7/Lower Caves -7/Lower Caves (discovered 2 exits: *Fac / *Dat) -7/Data Miner -6/Proximity Caves -6/Factory (discovered 3 exits: Fac / *Low x2) -6/Lower Caves -6/Lower Caves (discovered 2 exits: *Fac / *Zio) -6/Zion -5/Proximity Caves -5/Factory (discovered 4 exits: *Upp x2 / *Ext x2) -5/Extension (discovered 2 exits: *Fac / *Cet) -5/Cetus -5/Archives (discovered 3 exits: *Fac / *Hub x2) -4/Factory -4/Upper Caves -4/Upper Caves (discovered 2 exits: *Res / *Zhi) -4/Zhirov -3/Proximity Caves -3/Research -3/Quarantine -2/Research -2/DSF -1/Access To Epsilon Eridani History --------- Turn | Location | Event 27 | -11/Scrapyard | Discovered new exit (range 3) 88 | -11/Scrapyard | Entered Materials 123 | -10/Materials | Central database locked down 241 | -10/Materials | Discovered new exit (range 15) 316 | -10/Materials | Build established: Mutant 357 | -10/Materials | Destroyed 9 combat bots 357 | -10/Materials | Entered Mines 393 | -10/Mines | Found a hidden stash of uninstalled traps 396 | -10/Mines | Met a Derelict bent on vengeance 404 | -10/Mines | Learned Materials terminal intel 413 | -10/Mines | Learned Materials stockpile data 625 | -10/Mines | Received a Rocket Launcher from a helpful Derelict 703 | -10/Mines | Discovered new exit (range 8) 853 | -10/Mines | Assisted by bots powering up and referring to "LRC-V3" 1135 | -10/Mines | Entered Materials 1135 | -9/Materials | Accompanied by 1 ally 1135 | -9/Materials | Evolved 2 slots: Propulsion x1, Utility x1 1137 | -9/Materials | Loaded intel: 12 terminal locations 1460 | -9/Materials | Identified exit to Mines 1460 | -9/Materials | Identified exit to Storage 1460 | -9/Materials | Central database locked down 1572 | -9/Materials | Discovered new exit (range 14) 2556 | -9/Materials | Discovered new exit (range 16) 2730 | -9/Materials | Entered Storage 2882 | -9/Storage | Garrison activated, responded to threat 2911 | -9/Storage | Destroyed 7 combat bots 2927 | -9/Storage | Core integrity fell below 50% 3139 | -9/Storage | Repaired Adv. Treads 3144 | -9/Storage | Discovered new exit (range 30) 3291 | -9/Storage | Garrison activated, responded to threat 3318 | -9/Storage | System corruption reached 10% 3613 | -9/Storage | Central database locked down 3615 | -9/Storage | Assisted by bots powering up and referring to "LRC-V3" 3817 | -9/Storage | System corruption reached 30% 3820 | -9/Storage | Entered Materials 3820 | -8/Materials | Accompanied by 10 allies 3820 | -8/Materials | Evolved 2 slots: Propulsion x1, Utility x1 3897 | -8/Materials | Build established: Commander-Mutant 4518 | -8/Materials | Build established: Mutant 4620 | -8/Materials | First assault squad dispatched 4734 | -8/Materials | Lost 8 parts (2p2n3u1w) 4766 | -8/Materials | Destroyed 12 combat bots 5156 | -8/Materials | Discovered new exit (range 5) 5199 | -8/Materials | Build established: Scavenger-Mutant 5274 | -8/Materials | Core integrity fell below 50% 5472 | -8/Materials | Entered Factory 5472 | -7/Factory | Evolved 2 slots: Utility x1, Weapon x1 5689 | -7/Factory | Identified exit to Lower Caves 5815 | -7/Factory | Destroyed 8 combat bots 5978 | -7/Factory | Build established: Hacker-Gunner 6744 | -7/Factory | Entered Lower Caves 6809 | -7/Lower Caves | A Commander dispatched an escort 6820 | -7/Lower Caves | Learned location of Armory (-3) 6820 | -7/Lower Caves | Learned Armory terminal intel 6820 | -7/Lower Caves | Learned Extension garrison access intel 6856 | -7/Lower Caves | Build established: Gunner 6879 | -7/Lower Caves | Learned Factory stockpile data 7260 | -7/Lower Caves | Build established: Hauler-Gunner 7334 | -7/Lower Caves | Identified exit to Lower Caves 7558 | -7/Lower Caves | Attracted the attention of an 0b10 checkpoint 7707 | -7/Lower Caves | Attracted the attention of an 0b10 outpost 7709 | -7/Lower Caves | Entered another Lower Caves area 7741 | -7/Lower Caves | Discovered new exit (range 8) 7753 | -7/Lower Caves | Spotted B-75 Beast 8265 | -7/Lower Caves | Learned Factory emergency access door positions 8491 | -7/Lower Caves | Attracted the attention of an 0b10 checkpoint 8670 | -7/Lower Caves | Discovered new exit (range 5) 8719 | -7/Lower Caves | Entered Data Miner 8721 | -7/Data Miner | Discovered new exit (range 6) 8749 | -7/Data Miner | Met Data Miner 8786 | -7/Data Miner | Learned location of Section 7 (-3) 8786 | -7/Data Miner | Acquired the access code to Warlord's prototype stash 8807 | -7/Data Miner | Received God Mode back door access code from Data Miner 8873 | -7/Data Miner | Entered Proximity Caves 8918 | -6/Proximity Caves | Lost 4 parts (3u1w) 9016 | -6/Proximity Caves | Learned 12 Factory zone layouts 9029 | -6/Proximity Caves | Learned Factory interactive machine intel 9171 | -6/Proximity Caves | Escorted by Enhanced Grunt 9172 | -6/Proximity Caves | Attracted the attention of an 0b10 checkpoint 9224 | -6/Proximity Caves | Attracted the attention of an 0b10 outpost 9233 | -6/Proximity Caves | Core integrity fell below 50% 9261 | -6/Proximity Caves | Destroyed 8 combat bots 9266 | -6/Proximity Caves | Build established: Tank 9272 | -6/Proximity Caves | Lost 3 parts (1n2w) 9744 | -6/Proximity Caves | Build established: Derelict-Gunner 9762 | -6/Proximity Caves | Spotted B-75 Beast 9794 | -6/Proximity Caves | Allies destroyed B-75 Beast 9809 | -6/Proximity Caves | Lost 5 parts (1p2n2u) 10108 | -6/Proximity Caves | Build established: Gunner 10128 | -6/Proximity Caves | Discovered new exit (range 9) 10452 | -6/Proximity Caves | Build established: Mutant 10511 | -6/Proximity Caves | Found Prototype Device 10511 | -6/Proximity Caves | Identified Exp. Thermal Shield 10533 | -6/Proximity Caves | System corruption reached 10% 10570 | -6/Proximity Caves | Entered Factory 10570 | -6/Factory | Evolved 2 slots: Propulsion x1, Utility x1 10571 | -6/Factory | Identified exit to Factory 10571 | -6/Factory | Identified exit to Lower Caves 10574 | -6/Factory | Loaded intel: 52 interactive machine locations 11475 | -6/Factory | Entered Lower Caves 11574 | -6/Lower Caves | Learned Factory security intel 11823 | -6/Lower Caves | Spotted B-75 Beast 11854 | -6/Lower Caves | Learned Factory trap positions 11865 | -6/Lower Caves | Attracted the attention of an 0b10 checkpoint 12027 | -6/Lower Caves | Build established: Tank 12245 | -6/Lower Caves | Attracted the attention of an 0b10 outpost 12520 | -6/Lower Caves | Learned location of Extension (-5) 12575 | -6/Lower Caves | Discovered new exit (range 10) 12703 | -6/Lower Caves | Encountered a Warlord checkpoint 12855 | -6/Lower Caves | Build established: Mutant 13056 | -6/Lower Caves | Entered another Lower Caves area 13056 | -6/Lower Caves | Accompanied by 2 allies 13098 | -6/Lower Caves | Learned Extension emergency access door positions 13098 | -6/Lower Caves | Learned Armory terminal intel 13157 | -6/Lower Caves | Discovered exit to Factory (range 8) 13167 | -6/Lower Caves | Encountered a Warlord checkpoint 13357 | -6/Lower Caves | Build established: Tank 13775 | -6/Lower Caves | Build established: Mutant 14044 | -6/Lower Caves | Discovered new exit (range 12) 14107 | -6/Lower Caves | Attracted the attention of an 0b10 base 14142 | -6/Lower Caves | Destroyed 7 combat bots 14147 | -6/Lower Caves | Learned Armory garrison access intel 14147 | -6/Lower Caves | Learned Research terminal intel 14147 | -6/Lower Caves | Learned Extension emergency access door positions 14147 | -6/Lower Caves | Learned 8 Research zone layouts 14168 | -6/Lower Caves | Entered Zion 14169 | -6/Zion | Identified exit to Proximity Caves 14477 | -6/Zion | Received a hallucinogenic algorithm 14507 | -6/Zion | Gained Derelict followers 14532 | -6/Zion | Learned Factory emergency access door positions 14687 | -6/Zion | Found CR-A16's Pointy Stick 15016 | -6/Zion | Given A8's code to call for help 15140 | -6/Zion | Learned Factory interactive machine intel 15439 | -6/Zion | Entered Proximity Caves 15439 | -5/Proximity Caves | Accompanied by 2 allies 15870 | -5/Proximity Caves | Learned location of 1 exit from Factory 15887 | -5/Proximity Caves | Learned Factory stockpile data 15978 | -5/Proximity Caves | Build established: Derelict-Mutant 16226 | -5/Proximity Caves | Discovered exit to Factory (range 12) 16250 | -5/Proximity Caves | System corruption reached 10% 16252 | -5/Proximity Caves | Entered Factory 16252 | -5/Factory | Accompanied by 1 ally 16252 | -5/Factory | Evolved 2 slots: Propulsion x1, Utility x1 16253 | -5/Factory | Identified exit to Extension 16254 | -5/Factory | Loaded intel: 80 trap records 16258 | -5/Factory | Loaded intel: 53 interactive machine locations 16462 | -5/Factory | Incoming investigation squad redirected 16684 | -5/Factory | Garrison activated, responded to threat 16723 | -5/Factory | Discovered new exit (range 5) 17138 | -5/Factory | Identified exit to Upper Caves 17325 | -5/Factory | Cargo convoy interrupted 17393 | -5/Factory | Released all parts (7) 17395 | -5/Factory | Core integrity fell below 50% 17422 | -5/Factory | Lost 21 parts (2p6n7u6w) 17441 | -5/Factory | System corruption reached 10% 17516 | -5/Factory | Entered Extension 17565 | -5/Extension | Rescued a captive Derelict 17565 | -5/Extension | Rescued a captive Derelict 17860 | -5/Extension | Rescued a captive Derelict 17862 | -5/Extension | Rescued a captive Derelict 17988 | -5/Extension | Build established: Scavenger-Mutant 18002 | -5/Extension | Rescued a captive Derelict 18493 | -5/Extension | Crushed by falling debris 18494 | -5/Extension | Core integrity fell below 20% 18545 | -5/Extension | Rescued a captive Derelict 18546 | -5/Extension | Rescued a captive Derelict 18550 | -5/Extension | Incoming investigation squad redirected 18563 | -5/Extension | Rescued A7 18598 | -5/Extension | Rescued a captive Derelict 18599 | -5/Extension | Rescued a captive Derelict 18623 | -5/Extension | Rescued a captive Derelict 18666 | -5/Extension | Rescued a captive Derelict 18671 | -5/Extension | Rescued a captive Derelict 18671 | -5/Extension | Rescued a captive Derelict 18739 | -5/Extension | Rescued a captive Derelict 18841 | -5/Extension | Discovered new exit (range 10) 18843 | -5/Extension | Discovered new exit (range 6) 18871 | -5/Extension | Identified exit to Cetus 18898 | -5/Extension | Build established: Scavenger-Tank 18909 | -5/Extension | Entered Cetus 18909 | -5/Cetus | Accompanied by 5 allies (A7) 18914 | -5/Cetus | Acquired a Cetus Manufacturing Module code from A7 18931 | -5/Cetus | Spotted Cetus Guard 18931 | -5/Cetus | Spotted Cetus Guard 18937 | -5/Cetus | Spotted Cetus Guard 18938 | -5/Cetus | Spotted Cetus Guard 18942 | -5/Cetus | Destroyed Cetus Guard 18950 | -5/Cetus | Allies destroyed Cetus Guard 18957 | -5/Cetus | Allies destroyed Cetus Guard 18959 | -5/Cetus | Destroyed Cetus Guard 19083 | -5/Cetus | Started Cetus Manufacturing Module 19108 | -5/Cetus | Manufactured an Enhanced Grunt 19133 | -5/Cetus | Manufactured an Enhanced Grunt 19158 | -5/Cetus | Manufactured an Enhanced Grunt 19183 | -5/Cetus | Manufactured an Enhanced Grunt 19208 | -5/Cetus | Manufactured an Enhanced Grunt 19311 | -5/Cetus | Cetus Manufacturing Module disabled 19333 | -5/Cetus | Discovered new exit (range 16) 19356 | -5/Cetus | Identified exit to Archives 19358 | -5/Cetus | Entered Archives 19358 | -5/Archives | Accompanied by 6 allies (A7) 19377 | -5/Archives | Build established: Scavenger-Mutant 19428 | -5/Archives | Discovered new exit (range 14) 19447 | -5/Archives | Discovered new exit (range 16) 19483 | -5/Archives | Discovered new exit (range 13) 19501 | -5/Archives | Identified exit to Hub_04(d) 19571 | -5/Archives | Identified exit to Factory 19589 | -5/Archives | System corruption reached 30% 19714 | -5/Archives | Entered Factory 19714 | -4/Factory | Accompanied by 5 allies 19714 | -4/Factory | Evolved 2 slots: Power x1, Weapon x1 19895 | -4/Factory | Build established: Scavenger-Tank 20379 | -4/Factory | Discovered new exit (range 15) 20405 | -4/Factory | Identified exit to Upper Caves 20454 | -4/Factory | Repaired Hvy. Armor Plating 20475 | -4/Factory | Incoming investigation squad redirected 20592 | -4/Factory | Repaired Broken Centrium Heavy Treads? 20861 | -4/Factory | Entered Upper Caves 21135 | -4/Upper Caves | Build established: Scavenger-Mutant 21331 | -4/Upper Caves | Learned Research stockpile data 21571 | -4/Upper Caves | Attacked by a delusional Derelict stockpiling Unaware 21761 | -4/Upper Caves | Attacked by a delusional Derelict stockpiling parts 21855 | -4/Upper Caves | Build established: Scavenger-Tank 22256 | -4/Upper Caves | Build established: Scavenger-Mutant 22309 | -4/Upper Caves | Discovered new exit (range 10) 22334 | -4/Upper Caves | Acquired the password to a Derelict Tinkerer's latest research 22345 | -4/Upper Caves | Found Prototype Special Weapon 22379 | -4/Upper Caves | Identified exit to Upper Caves 22384 | -4/Upper Caves | Entered another Upper Caves area 22384 | -4/Upper Caves | Accompanied by 3 allies 22386 | -4/Upper Caves | Attracted the attention of an 0b10 checkpoint 22424 | -4/Upper Caves | Learned 4 Research zone layouts 22469 | -4/Upper Caves | Learned location of Testing (-2) 22485 | -4/Upper Caves | Discovered new exit (range 7) 22493 | -4/Upper Caves | Identified exit to Research 23360 | -4/Upper Caves | Discovered new exit (range 16) 23464 | -4/Upper Caves | Build established: Scavenger-Skirmisher 23606 | -4/Upper Caves | Identified exit to Zhirov 23608 | -4/Upper Caves | Entered Zhirov 23608 | -4/Zhirov | Discovered new exit (range 3) 23610 | -4/Zhirov | Identified exit to Proximity Caves 23643 | -4/Zhirov | Met Zhirov 23679 | -4/Zhirov | Learned location of Quarantine (-3) 23679 | -4/Zhirov | Learned location of Command (-1) 23688 | -4/Zhirov | Zhirov requested help retrieving the SGEMP Prototype 23715 | -4/Zhirov | Found Alien Artifact 23715 | -4/Zhirov | Identified Integrated Dissipator 23715 | -4/Zhirov | Installed Integrated Dissipator, increased core heat dissipation (+20) 23738 | -4/Zhirov | Found Alien Artifact 23911 | -4/Zhirov | Entered Proximity Caves 24535 | -3/Proximity Caves | Build established: Scavenger-Mutant 24937 | -3/Proximity Caves | Discovered exit to Research (range 8) 25059 | -3/Proximity Caves | Entered Research 25059 | -3/Research | Evolved 2 slots: Utility x2 25062 | -3/Research | Loaded intel: 24 terminal locations 25452 | -3/Research | Fabricated Exp. Force Field (x1) 25452 | -3/Research | Build established: Scavenger-Tank 26244 | -3/Research | Identified Molecular Deconstructor 26316 | -3/Research | Spotted B-90 Cyclops 26327 | -3/Research | Discovered new exit (range 11) 26346 | -3/Research | Identified exit to Quarantine 26347 | -3/Research | Entered Quarantine 26873 | -3/Quarantine | System corruption reached 10% 26892 | -3/Quarantine | Found Alien Artifact 26994 | -3/Quarantine | Scanned by Researcher 27002 | -3/Quarantine | Garrison activated, responded to threat 27059 | -3/Quarantine | Discovered new exit (range 16) 27072 | -3/Quarantine | Destroyed 11 combat bots 27112 | -3/Quarantine | Incoming assault squad redirected 27131 | -3/Quarantine | Identified exit to Research 27132 | -3/Quarantine | Entered Research 27132 | -2/Research | Evolved 2 slots: Utility x1, Weapon x1 27136 | -2/Research | Identified exit to DSF 27136 | -2/Research | Entered DSF 27157 | -2/DSF | Additional patrols routed to DSF 27318 | -2/DSF | Sterilization system engaged 27338 | -2/DSF | Ambient heat levels rising (+10) 27353 | -2/DSF | Ambient heat levels rising (+10) 27354 | -2/DSF | Found Unknown Launcher 27354 | -2/DSF | Identified Fusion Bomb Launcher 27358 | -2/DSF | Found Fusion Bomb Launcher 27361 | -2/DSF | Found Fusion Bomb Launcher 27363 | -2/DSF | Found Fusion Bomb Launcher 27368 | -2/DSF | Ambient heat levels rising (+10) 27383 | -2/DSF | Ambient heat levels rising (+10) 27398 | -2/DSF | Ambient heat levels rising (+10) 27412 | -2/DSF | Discovered new exit (range 14) 27413 | -2/DSF | Ambient heat levels rising (+10) 27428 | -2/DSF | Ambient heat levels rising (+10) 27431 | -2/DSF | Identified exit to Access 27433 | -2/DSF | Entered Access 27433 | -1/Access | Evolved 2 slots: Utility x2 27628 | -1/Access | Incoming investigation squad redirected 27712 | -1/Access | Garrison activated, responded to threat 27753 | -1/Access | System corruption reached 10% 27787 | -1/Access | Lost 3 parts (1p2u) 27933 | -1/Access | Energy Cycler disabled 28014 | -1/Access | Destroyed 12 combat bots 28189 | -1/Access | Found Prototype Launcher 28193 | -1/Access | Found Prototype Launcher 28312 | -1/Access | High security lockdown imminent 28392 | -1/Access | High security lockdown engaged 28580 | -1/Access | Lost 3 parts (2u1w) 28596 | -1/Access | Spotted Executioner 28596 | -1/Access | Spotted Executioner 28596 | -1/Access | Spotted Striker 28598 | -1/Access | Destroyed Executioner 28609 | -1/Access | Destroyed Executioner 28616 | -1/Access | Identified Ragnarok Missile Launcher (x2) 28625 | -1/Access | Identified Transdimensional Reconstructor 28625 | -1/Access | Warped through subspace 28643 | -1/Access | Destroyed 14 combat bots 28653 | -1/Access | Lost 4 parts (3u1w) 28748 | -1/Access | Spotted Striker 28748 | -1/Access | Spotted Striker 28771 | -1/Access | Destroyed Striker 28807 | -1/Access | Spotted Executioner 28807 | -1/Access | Spotted Executioner 28810 | -1/Access | Released all parts (8) 28819 | -1/Access | Core integrity fell below 50% 28821 | -1/Access | Destroyed 8 combat bots 28840 | -1/Access | Lost 14 parts (5n5u4w) 28889 | -1/Access | Core integrity fell below 20% 28900 | -1/Access | Discovered new exit (range 6) 28903 | *** | Escaped! Last Messages --------------- 28866_ Adv. Medium Treads broken. 28866_ Destabilizing: Short circuit. 28867_ C-30 ARC bursts open, deploying its payload. 28867_ L-61 Swordsman unfolds itself. 28867_ G-73 Enforcer unfolds itself. 28867_ Slammed into G-73 Enforcer. 28867_ Adv. Heavy Siege Treads broken. 28867_ Destabilizing: Short circuit. 28868_ Slammed into G-73 Enforcer. 28870_ O-32 Director: "IFF HANDSHAKE FAILED. SECURING TERMINAL." 28870_ Slammed into P-80 Master. 28870_ Destabilizing: System corrupted (+1). 28877_ Terminal disabled. 28878_ K-01 Serf destroyed. 28878_ Broken Adv. Medium Treads destroyed. 28879_ Broken Adv. Heavy Siege Treads destroyed. 28888_ Knocked back. 28896_ System corrupted: Component data lost. 28900_ The Access Shell folds into the floor. 28900_ EXIT=FOUND Map ----- +----------------------------------------------------+ | ## #????????????????????????????????????????? | | ?? #????????????????????????????????????????? | | ???######????????????????????????????????????????? | | ?????????????????????????????????????????????????? | | ?????????????????????????????????????????????????? | | ?????????????????????????????????????????????????? | | ?????????????????????????????????????????????????? | | #????????????????????????????????????????????????? | | #????????????????????????????????????????????????? | | #?#############??????????????????????????????????? | | #? ??????????????????????????????????? | | # ?????????????????????????????????? | | # ?????????????????????????????????? | | " ?????????????????????????????????? | | # ?????????????????????????????????? | | # """"T"""" ???????????????????????????????????? | | #? """""""???????????????????????????????????????? | | #?######?????????????????????????????????????????? | | ##???????????????????????????????????????????????? | | #???????????????????????????????????????????????? | | #?????????????????#""""""""""#??????????????????? | | #?????????????????# #??????????????????? | | #?????????????????# #??????????????????? | | #?????????????????# #??????????????????? | | #?????????????????# "" #??????????????????? | | #?????????????????# "@ #??????????????????? | | #??###?#?####?????# #??????????????????? | | ##??# #?????# #??????????????????? | | ????# #?????# #??????????????????? | | ????# " #????## ##?????????????????? | | ????# """ #????# #?????????????????? | | #???# """ #????##"" ##?????????????????? | | #???# " #?????#"" #??????????????????? | | ????# #?????#"" #??????????????????? | | ????? #?????#T #??????????????????? | | #?????? ???????#"" #??????????????????? | | #?????###+##???????#"" #??????????????????? | | ####### #########"" #??????????????????? | | % % u ???????????? | | ???????????? | | ####### ##########################????????????? | | #?????######?????????????????????????????????????? | | #????????????????????????????????????????????????? | | ?????????????????????????????????????????????????? | | ?????????????????????????????????????????????????? | | ?????????????????????????????????????????????????? | | ?????????????????????????????????????????????????? | | ?????????????????????????????????????????????????? | | ?????????????????????????????????????????????????? | | ?????????????????????????????????????????????????? | +----------------------------------------------------+ Best States ------------- Heat Dissipation 134 Energy Generation 53 Energy Capacity 825 Matter Stores 300 Matter Capacity 300 Sight Range 16 Robot Scan Range 16 Terrain Scan Range 20 Terrain Scan Density 10 Armor Coverage 1650 Resistance: KI 25 Resistance: TH 30 Power Shielding 66 Weapon Cycling 20 Evasion (%) 62 Targeting Accuracy 8 Recoil Reduction 6 Matter Filtering 50 Energy Filtering 30 Kinecelleration 40 Offensive Hacking 20 Defensive Hacking 11 Item Schematics ----------------- Huge Storage Unit | -8/Materials | Scanalyzed Combat Drone Bay | -7/Data Miner | Free Lgt. Regenerative Plating | -7/Data Miner | Free Biomechanical Wings | -7/Data Miner | Free Exp. Targeting Computer | -7/Data Miner | Free Cld. Plasma Cannon | -7/Data Miner | Free Gyrokinetic Inverter | -7/Data Miner | Free Imp. Component Analysis Suite | -7/Data Miner | Free Enh. Gauss Cannon | -7/Data Miner | Free Adv. Transmission Jammer | -7/Data Miner | Free Adv. Cryofiber Web | -7/Data Miner | Free Field Propulsion Drive | -7/Data Miner | Free Beamcaster | -6/Zion | Free Arc Thrower | -6/Zion | Free Battle Rifle | -6/Zion | Free Slug Cannon | -6/Zion | Free Plasma Flamer | -6/Zion | Free Force Field | -6/Zion | Archive Adv. System Restoration Module | -6/Zion | Archive Thermal Shield | -6/Zion | Archive Adv. Trap Extractor | -6/Zion | Archive Imp. Thermal Generator | -6/Zion | Archive Mak. Trap Scanner | -6/Zion | Archive Hvy. Pick | -6/Zion | Archive Adv. Thermal Generator | -6/Zion | Archive Imp. Force Field | -6/Zion | Archive Flexi-carbon Leg | -6/Zion | Archive Lrn. Proton Cannon | -6/Zion | Archive Energy Well | -6/Zion | Archive Drone Bay | -6/Zion | Archive Assault Drone Bay | -4/Zhirov | Free Exp. Heat Sink | -4/Zhirov | Free Exp. Optical Array | -4/Zhirov | Free Imp. Arc Thrower | -4/Zhirov | Free Imp. Matter Compressor | -3/Quarantine | Archive Robot Schematics ------------------ X-67 Chaingunner | -7/Data Miner | Free W-25 Informer | -7/Data Miner | Free G-47 Trooper | -7/Data Miner | Free S-27 Virus | -7/Data Miner | Free L-41 Fighter | -7/Data Miner | Free T-07 Excavator | -6/Zion | Archive M-14 Sweeper | -6/Zion | Archive L-61 Swordsman | -6/Zion | Archive Fabricated ------------ Exp. Force Field | x1 | -3/Research | Preloaded Alien Tech Used ----------------- Integrated Dissipator Transdimensional Reconstructor Achievements -------------- None Challenges ------------ None Game ------ Seed TeslaHardcellTorch Manual? 0 Play Time 04:51:09 Cumulative 885.9 hours Start 2022.10.11 @ 02:29:13 End 2022.10.12 @ 03:59:59 Sessions 3 Manual Loads 0 Difficulty Rogue Special Mode None Game No. 199 Rogue 167 Adventurer 31 Explorer 1 Win Type 0 Total 41 Types 29/0/6/5/0/0/1/0/0 Lore% 86 Gallery% 89 Achievement% 76 Wizard Run 0 Options --------- ASCII 0 Keyboard 0 Movement Arrows Keybinds 0 Fullscreen 1 Font 20/Terminus Map View 66x50 Tactical HUD 1 Map Filters NONE Filters NONE Steam 1 RUN: 349122b1-6269-4bcc-9cbd-9f2f37b5684e